Cogmind - Beta 13 @@@ ROGUE MODE // 2024.04.14 @ 11:00:02 Player: escism Result: Destroyed by G-34 Mercenary with Small Laser Performance ------------- Evolutions (0) 0 Regions Visited (1) 200 Robots Destroyed (13) 65 Value Destroyed (416) 416 Prototype IDs (0) 0 Alien Tech Used (0) 0 Bonus (0) 0 TOTAL SCORE: 681 Bonus ------- None Cogmind --------- Core Integrity 0/250 Matter 290/300 Energy 250/250 System Corruption 0% Temperature Cool (6) Movement Treading (160) Location -10/Materials Parts ------- > --- POWER (1) -------- Ion Engine > --- PROPULSION (2) --- Improved Treads Improved Treads > --- UTILITY (2) ------ Improved Heat Sink Small Storage Unit > --- WEAPON (2) ------- Small Laser Grenade Launcher > --- INVENTORY (8) ---- Light Ion Engine Light Ion Engine Improved Treads Improved Treads Large Matter Pod (150) Signal Interpreter Peak State ------------ > --- POWER ------------ Ion Engine > --- PROPULSION ------- Improved Treads Improved Treads > --- UTILITY ---------- Improved Heat Sink Small Storage Unit > --- WEAPON ----------- Light Assault Rifle Light Assault Rifle > --- INVENTORY -------- Light Ion Engine Light Treads Aluminum Leg Aluminum Leg Large Matter Pod Signal Interpreter Small Laser Grenade Launcher [Rating: 11] Favorites ----------- Power Ion Engine Engine Ion Engine Propulsion Light Treads Treads Light Treads Utility Small Storage Unit Device Improved Heat Sink Storage Small Storage Unit Weapon Light Assault Rifle Energy Gun Small Laser Ballistic Gun Light Assault Rifle Launcher Grenade Launcher Build | -11 -10 ------- Run | Yrd Mat Slots Evolved . | . . Power . | . . Propulsion . | . . Utility . | . . Weapon . | . . Parts Attached 15 | 6 9 Power 4 | 1 3 Engine 4 | 1 3 Core . | . . Reactor . | . . Propulsion 4 | 2 2 Treads 4 | 2 2 Leg . | . . Wheel . | . . Hover . | . . Flight . | . . Utility 3 | 1 2 Device 2 | . 2 Storage 1 | 1 . Processor . | . . Hackware . | . . Protection . | . . Artifact . | . . Weapon 4 | 2 2 Energy Gun 1 | . 1 Energy Cannon . | . . Ballistic Gun 2 | 2 . Ballistic Cannon . | . . Launcher 1 | . 1 Special Weapon . | . . Impact Weapon . | . . Slashing Weapon . | . . Piercing Weapon . | . . Special Melee Weapon . | . . Unidentified Prototypes . | . . Parts Lost 2 | . 2 Power 1 | . 1 Propulsion . | . . Utility . | . . Weapon 1 | . 1 Highest Loss Streak 1 | . 1 To Critical Strikes . | . . Average Slot Usage (%) 95 | . 95 Engine 13 | . 13 Treads 28 | . 28 Device 10 | . 10 Storage 14 | . 14 Ballistic Gun 22 | . 22 Launcher 4 | . 4 Naked Turns . | . . Heaviest Build 15 | 12 15 Greatest Support 46 | 40 46 Greatest Overweight (x) . | . . Average Overweight (x) . | . . Largest Inventory Capacity 8 | 8 8 Average Capacity 7 | 7 8 Most Carried 8 | 4 8 Average Carried 5 | 2 5 Final Capacity 8 | 8 8 Final Carried 6 | 4 6 Class Distribution -------------------- 100% | Mutant Dominant Class ---------------- Mutant | -10/Materials Resources | -11 -10 ----------- Run | Yrd Mat Matter Collected 608 | 209 399 Remotely . | . . Salvage Created 465 | . 465 Parts 24 | . 24 Haulers Intercepted . | . . Recyclers Shooed 1 | . 1 Parts Field Recycled . | . . Retrieved Matter . | . . Parts Self-Destructed . | . . Prevented . | . . Kills | -11 -10 ------- Run | Yrd Mat Combat Hostiles Destroyed 10 | . 10 Guns 9 | . 9 AOE 1 | . 1 Classes Destroyed 3 | . 3 Builder 1 | . 1 Watcher 2 | . 2 Grunt 10 | . 10 Best Kill Streak 4 | . 4 Combat Bots Only 3 | . 3 Max Kills in Single Turn 1 | . 1 Gunslinging . | . . Exploded 1 | . 1 Melee . | . . Uniques/NPCs Destroyed . | . . Combat | -11 -10 -------- Run | Yrd Mat Hostile Shots Fired 109 | . 109 Missed 27 | . 27 Damage Taken 995 | . 995 Core 253 | . 253 Absorbed by Shields . | . . Core Remaining (%) 100 | 100 . Volleys Fired 78 | . 78 Largest 2 | . 2 Hottest 50 | . 50 Shots Fired 125 | . 125 Gun 124 | . 124 Cannon . | . . Launcher 1 | . 1 Special . | . . Kinetic 117 | . 117 Thermal 7 | . 7 Explosive 1 | . 1 Electromagnetic . | . . Robot Hit Streak 14 | . 14 Robot Miss Streak 4 | . 4 Penetration Max . | . . Secondary Targets . | . . Shots Hit Robots 93 | . 93 Core Hits 34 | . 34 Critical Kills . | . . Critical Parts Destroyed . | . . Critical Strikes . | . . Melee Attacks . | . . Impact . | . . Slashing . | . . Piercing . | . . Sneak Attacks . | . . Combat Hostiles . | . . Follow-up Attacks . | . . Damage Inflicted 802 | . 802 Guns 741 | . 741 Cannons . | . . Explosions 59 | . 59 Melee . | . . Ramming 2 | . 2 Kinetic 697 | . 697 Thermal 44 | . 44 Explosive 59 | . 59 Electromagnetic . | . . Impact . | . . Slashing . | . . Piercing . | . . Highest Corruption . | . . Average Corruption . | . . Corruption Purged . | . . Corruption Blocked . | . . Overload Shots . | . . Overflow Damage . | . . Projectiles . | . . Explosions . | . . Melee . | . . Knockbacks . | . . Impact . | . . Kinetic . | . . Secondary . | . . Self-Inflicted Damage . | . . Shots . | . . Rammed 1 | . 1 Targets Rammed 2 | . 2 Kicked . | . . Crushed 1 | . 1 Highest Temperature 17 | . 17 Average Temperature 6 | . 6 Received Heat Transfer 594 | . 594 Siege Activations . | . . Robots Corrupted . | . . Combat Hostiles . | . . Parts Fried . | . . Impact Corruptions . | . . Robots Melted . | . . Combat Hostiles . | . . Parts Melted . | . . Heat Transferred 100 | . 100 Parts Sabotaged . | . . Parts Stolen . | . . Parts Stripped . | . . Power Chain Reactions . | . . Alert | -11 -10 ------- Run | Yrd Mat Peak Influence 237 | . 237 Initial . | . . Average 82 | . 92 Maximum Alert Level 1 | . 1 Low Security (%) 90 | 100 89 Level 1 9 | . 10 Level 2 . | . . Level 3 . | . . Level 4 . | . . Level 5 . | . . High Security . | . . Max Security . | . . Squads Dispatched 2 | . 2 Investigation 1 | . 1 Extermination . | . . Reinforcement 1 | . 1 Assault . | . . Garrison . | . . Intercept . | . . Searches Triggered . | . . Construction Impeded . | . . Haulers Reinforced . | . . Active Scanning Responses . | . . Cargo Convoy Interrupts . | . . Stealth | -11 -10 --------- Run | Yrd Mat Distress Signals 2 | . 2 Communications Jammed . | . . Distress Signals . | . . Times Spotted 19 | . 19 Peak Tracking Total 4 | . 4 Tactical Retreats 1 | . 1 Traps | -11 -10 ------- Run | Yrd Mat Traps Triggered 1 | . 1 Indirectly . | . . Trap Hack Attempts . | . . Triggered . | . . Disarmed . | . . Reprogrammed . | . . Reused . | . . Traps Extracted . | . . Installed . | . . Triggered . | . . Machines | -11 -10 ---------- Run | Yrd Mat Machines Disabled 1 | . 1 Max in Single Turn 1 | . 1 Machines Repaired . | . . Machines Dismantled . | . . Machines Sabotaged . | . . Overloaded Fab Kills . | . . Hacking | -11 -10 --------- Run | Yrd Mat Machines Accessed 4 | . 4 Terminals 3 | . 3 Fabricators . | . . Repair Stations . | . . Recycling Units 1 | . 1 Scanalyzers . | . . Garrison Access . | . . Total Hacks 10 | . 10 Successful 6 | . 6 Failed 4 | . 4 Catastrophic . | . . Database Lockouts . | . . Manual . | . . Terminals 8 | . 8 Fabricators . | . . Repair Stations . | . . Recycling Units 2 | . 2 Scanalyzers . | . . Garrison Access . | . . Terminal Hacks 5 | . 5 Terminal Index 1 | . 1 Alert Level 1 | . 1 Locate Traps 1 | . 1 Reinforcement Status 1 | . 1 Zone Layout 1 | . 1 Fabricator Hacks . | . . Repair Station Hacks . | . . Recycling Unit Hacks 1 | . 1 Retrieve Matter 1 | . 1 Scanalyzer . | . . Garrison Access Hacks . | . . Unauthorized Hacks . | . . Terminals . | . . Fabricators . | . . Repair Stations . | . . Recycling Units . | . . Scanalyzers . | . . Garrison Access . | . . Data Cores Recovered . | . . Used . | . . Hacking Detections 3 | . 3 Full Trace Events 1 | . 1 Feedback Events . | . . Feedback Blocked . | . . Robot Schematics Acquired . | . . Robots Built . | . . Authchips . | . . Time . | . . Total Robot Build Rating . | . . Part Schematics Acquired . | . . Parts Built . | . . Authchips . | . . Time . | . . Total Part Build Rating . | . . Parts Repaired . | . . Time . | . . Parts Recycled . | . . Recycled Matter . | . . Retrieved Matter . | . . Retrieved Components . | . . Parts Scanalyzed . | . . Part Schematics Acquired . | . . Parts Damaged . | . . Bothacking | -11 -10 ------------ Run | Yrd Mat Used RIF Installer . | . . Robots Hacked . | . . Non-combat . | . . Combat . | . . Robot Hacks Applied . | . . Relay Couplers Released . | . . Fabnet Peak Effective % . | . . Robots Rewired . | . . Allies Hacked . | . . Hacks Repelled . | . . Allies | -11 -10 -------- Run | Yrd Mat Total Allies . | . . Largest Group . | . . Highest-Rated Group . | . . Highest-Rated Ally . | . . Total Orders . | . . Ally Attacks . | . . Total Damage . | . . Kills . | . . Allies Corrupted . | . . Allies Melted . | . . Intel | -11 -10 ------- Run | Yrd Mat Robot Analysis Total . | . . Derelict Logs Recovered . | . . Drone Launches . | . . Drone Recoveries . | . . Exploration | -11 -10 ------------- Run | Yrd Mat Turns Passed 785 | 89 696 Spaces Moved 335 | 51 284 Core 4 | 4 . Treads 331 | 47 284 Legs . | . . Wheels . | . . Hover . | . . Flight . | . . Fastest Speed 50 | 50 160 Average Speed 158 | 151 160 Slowest Speed 160 | 160 160 Overloaded Moves . | . . Propulsion Burnouts . | . . Robots Hopped . | . . Cave-ins Triggered . | . . Exploration Rate (%) 23 | 4 42 Regions Visited 1 Branch Regions . Pre-discovered Areas . | . . Known Exits Taken . | . . Unknown Exits Taken 1 | 1 . Scrap Searched . | . . Spaces Dug . | . . Terrain Destroyed 6 | . 6 Melee . | . . Projectile . | . . AOE 6 | . 6 Terrain Rammed . | . . Walls Destroyed . | . . Machines Disabled . | . . Actions | -11 -10 --------- Run | Yrd Mat Total 484 | 60 424 Wait 35 | . 35 Move 334 | 50 284 Hop . | . . Pick Up 12 | 4 8 Fast Attach 7 | 6 1 Attach 2 | . 2 Detach . | . . Swap 6 | . 6 Drop 8 | . 8 Fire 78 | . 78 Melee . | . . Ram . | . . Kick . | . . Crush 2 | . 2 Escape Stasis . | . . Rewire . | . . Trap . | . . Miscellaneous . | . . Route ------- -11/Scrapyard -10/Materials (discovered 1 exit: [*Min]) History --------- Turn | Location | Event 16 | -11/Scrapyard | Discovered new exit (range 15) 90 | -11/Scrapyard | Entered Materials 314 | -10/Materials | Build established: Mutant 411 | -10/Materials | Core integrity fell below 50% 548 | -10/Materials | Discovered new exit (range 14) 692 | -10/Materials | Core integrity fell below 20% 786 | -10/Materials | Destroyed by G-34 Mercenary with Small Laser Last Messages --------------- >>Alert(Check) Current Alert Level: Low Security >>Enumerate(Reinforcements) Retrieving latest reported positions... No active reinforcement squads found. K-01 Serf cleans the Material Processor. O-16 Technician: "IFF HANDSHAKE FAILED. SECURING TERMINAL." O-16 Technician uses terminal to summon reinforcements. ALERT: Hostiles spotted, dispatching reinforcements to Terminal M007. O-16 Technician locks terminal. Material Processor disabled. K-01 Serf collects debris. Critical hit (Burn: +37). G-47 Trooper destroyed. K-01 Serf collects debris. G-34 Mercenary destroyed. K-01 Serf collects debris. Acquired 20 matter. K-01 Serf collects debris. Lgt. Assault Rifle destroyed. Map ----- +----------------------------------------------------+ | ????????????????????????????????????? | | ????????????????????????????????????? | | ????????????????????????????????????? | | ??????????????????????????????????? | | ??????????????????????????????????? | | ????????????????????????????????? | | ???????????????????????????????? | | ???????????????????????????????? | | ????????????????????????????????? | | ?????????????? ??????????????? ?? | | ?????????????? ???????????????? ? | | ?????????????? ##### | | ?????????????? #???# | | ?????????????? #???# | | ?????????????# #######???# #######/ | | ???#?????????# #?????????#####??# ^ | | ???# ????????# #????????????????# | | ???# ???????# #????????????????# | | ???? ??????# #????????????????# | | ????? ?????# #????????????????# | | ???#+##+###### #?????????########""" | | ???# # #?????????# #""" | | ???# # ########??# """ %#""" | | ???# ! # #??# """ # | | ???# g #??# """ ##### | | ???# !! @# #??# ##""" | | ???# ! # #??# "T" ##" ! | | ???# # #########+## | | ???# = # ! | | ???########### | | ?????????????# ^ ^ ^ | | ?????????????# ^ ## | | ?????????????# ^ ## ## | | ?????????????# ##### | | ?????????????# ^""" ""#?? | | ?????????????# """"" T"#?? | | ?????????????###### """"" ""#?? | | ?????????????????#T """" ###?? | | ?????????????????## """ ##??? | | ??????############# #??? | | ???# %= #??? | | ???# =% #??? | | ???# ! | #??? | | ???# ##########+########## #??? | | ???????????????????????????#######??? | | ????????????????????????????????????? | | ????????????????????????????????????? | | ????????????????????????????????????? | | ????????????????????????????????????? | | ????????????????????????????????????? | +----------------------------------------------------+ Best States ------------- Heat Dissipation 39 Energy Generation 10 Energy Capacity 250 Matter Stores 300 Matter Capacity 300 Sight Range 16 Terrain Scan Density 10 Evasion (%) 40 Recoil Reduction 2 Item Schematics ----------------- None Robot Schematics ------------------ None Fabricated ------------ Nothing Alien Tech Used ----------------- None Achievements -------------- None Challenges ------------ None Game ------ Seed VariableSpikedCanceller Manual? 0 Play Time 00:11:45 Cumulative 4.9 hours Start 2024.04.14 @ 10:49:04 End 2024.04.14 @ 11:00:02 Sessions 1 Manual Loads 0 Difficulty Rogue Special Mode None Game No. 9 Rogue 9 Adventurer 0 Explorer 0 Win Type - Total 0 Types 0/0/0/0/0/0/0/0/0 Lore% 3 Gallery% 7 Achievement% 8 Wizard Run 0 Options --------- Layout 0 ASCII 0 Keyboard 0 Movement Mouse Keybinds 0 Fullscreen 1 Font 24/Smallcaps Map View 38x25 Zoom Use 100% Tactical HUD 0 Map Filters NONE Filters NONE Steam 1 RUN: bb9ea000-a9e4-4341-8629-4317fa6bc262